[Event "Torneo Nuevo Centro. Jornada 11"]
[Site "Chess.com"]
[Date "2020.08.28"]
[Round "4"]
[White "Ortiz Benavent, Alba"]
[Black "Grigorev, Artur "]
[Result "1-0"]
[WhiteElo "1188"]
[BlackElo "916"]
[TimeControl "180+2"]
[EndTime "11:09:08 PDT"]
[Termination "Victoria de or20 por tiempo"]

1. d4 {[%clk 0:02:57.5]} 1... d5 {[%clk 0:03:00.5]} 2. Nf3 {[%clk 0:02:57.7]}
2... Nc6 {[%clk 0:03:00.9]} 3. Bf4 {[%clk 0:02:57.9]} 3... Bf5 {[%clk 0:03:01]}
4. e3 {[%clk 0:02:57.5]} 4... Nf6 {[%clk 0:03:00.3]} 5. Bd3 {[%clk 0:02:57]}
5... e6 {[%clk 0:03:00.9]} 6. Bxf5 {[%clk 0:02:53.3]} 6... exf5 {[%clk
0:02:58.7]} 7. c3 {[%clk 0:02:54.1]} 7... Bd6 {[%clk 0:02:50.7]} 8. Bg3 {[%clk
0:02:53.2]} 8... Bxg3 {[%clk 0:02:50.8]} 9. hxg3 {[%clk 0:02:49.5]} 9... Ne4
{[%clk 0:02:44.4]} 10. Nbd2 {[%clk 0:02:48.7]} 10... Nxd2 {[%clk 0:02:43.3]} 11.
Qxd2 {[%clk 0:02:49.3]} 11... O-O {[%clk 0:02:42]} 12. Qd3 {[%clk 0:02:49.5]}
12... Ne7 {[%clk 0:02:36.6]} 13. g4 {[%clk 0:02:45.8]} 13... c6 {[%clk
0:02:26.1]} 14. Ne5 {[%clk 0:02:40.4]} 14... Qd6 {[%clk 0:02:04.7]} 15. gxf5
{[%clk 0:02:33.1]} 15... f6 {[%clk 0:01:56.1]} 16. Ng4 {[%clk 0:02:09.8]} 16...
b5 {[%clk 0:01:50.2]} 17. b4 {[%clk 0:02:07.3]} 17... Qd7 {[%clk 0:01:48]} 18.
e4 {[%clk 0:01:53.2]} 18... dxe4 {[%clk 0:01:46.4]} 19. Qxe4 {[%clk 0:01:53.4]}
19... Nxf5 {[%clk 0:01:40.5]} 20. Qf3 {[%clk 0:01:36.4]} 20... Rfe8+ {[%clk
0:01:25.1]} 21. Ne3 {[%clk 0:01:36.2]} 21... Nxe3 {[%clk 0:01:08.2]} 22. fxe3
{[%clk 0:01:36.1]} 22... Re7 {[%clk 0:00:56.1]} 23. Kf2 {[%clk 0:01:34.9]} 23...
Rae8 {[%clk 0:00:55.4]} 24. Rae1 {[%clk 0:01:28.9]} 24... Qe6 {[%clk 0:00:42.5]}
25. Re2 {[%clk 0:01:29]} 25... g5 {[%clk 0:00:26.4]} 26. Qh5 {[%clk 0:01:16.9]}
26... Qf5+ {[%clk 0:00:18.7]} 27. Qf3 {[%clk 0:01:05.3]} 27... Qxf3+ {[%clk
0:00:17.3]} 28. gxf3 {[%clk 0:01:05.7]} 28... Kg7 {[%clk 0:00:13.7]} 29. e4
{[%clk 0:00:58.9]} 29... f5 {[%clk 0:00:10.2]} 30. e5 {[%clk 0:00:59.3]} 30...
Kf7 {[%clk 0:00:08.1]} 31. Kg3 {[%clk 0:00:59.7]} 31... f4+ {[%clk 0:00:07]} 32.
Kg4 {[%clk 0:00:59.9]} 32... Kg6 {[%clk 0:00:06.8]} 33. Rhh2 {[%clk 0:00:59.3]}
33... Re6 {[%clk 0:00:06.2]} 34. Re1 {[%clk 0:00:59.8]} 1

[Event "Torneo Nuevo Centro. Jornada 11"]
[Site "Chess.com"]
[Date "2020.08.28"]
[Round "4"]
[White "Lloret Ramis, Juan José"]
[Black "Garcia, Jhoel"]
[Result "0-1"]
[WhiteElo "1990"]
[BlackElo "2386"]
[TimeControl "180+2"]
[EndTime "11:09:39 PDT"]
[Termination "Victoria de shoels por tiempo"]

1. c4 {[%clk 0:03:01.9]} 1... Nf6 {[%clk 0:02:59.2]} 2. Nc3 {[%clk 0:03:02.1]}
2... g6 {[%clk 0:03:00.6]} 3. d4 {[%clk 0:03:02.4]} 3... Bg7 {[%clk 0:03:02]} 4.
e4 {[%clk 0:03:03.4]} 4... d6 {[%clk 0:03:03.4]} 5. Nf3 {[%clk 0:03:04.3]} 5...
O-O {[%clk 0:03:04.8]} 6. Be2 {[%clk 0:03:05.3]} 6... Nbd7 {[%clk 0:03:06.3]} 7.
e5 {[%clk 0:03:05.9]} 7... Ne8 {[%clk 0:03:05.3]} 8. exd6 {[%clk 0:03:02.7]}
8... Nxd6 {[%clk 0:02:47.3]} 9. O-O {[%clk 0:02:56.4]} 9... e5 {[%clk
0:02:46.3]} 10. dxe5 {[%clk 0:02:53]} 10... Nxe5 {[%clk 0:02:47.7]} 11. Nxe5
{[%clk 0:02:54.1]} 11... Bxe5 {[%clk 0:02:49.1]} 12. Bh6 {[%clk 0:02:55.2]}
12... Bxh2+ {[%clk 0:02:16.6]} 13. Kxh2 {[%clk 0:02:55.6]} 13... Qh4+ {[%clk
0:02:18.1]} 14. Kg1 {[%clk 0:02:56.9]} 14... Qxh6 {[%clk 0:02:19.7]} 15. Nd5
{[%clk 0:02:56.6]} 15... Ne8 {[%clk 0:01:54.8]} 16. Bf3 {[%clk 0:02:33.2]} 16...
c6 {[%clk 0:01:53.3]} 17. Ne7+ {[%clk 0:02:27.1]} 17... Kh8 {[%clk 0:01:54.4]}
18. Nxc8 {[%clk 0:02:26]} 18... Rxc8 {[%clk 0:01:54.5]} 19. Qd4+ {[%clk
0:02:27.5]} 19... Qg7 {[%clk 0:01:47.2]} 20. Qxa7 {[%clk 0:02:25.3]} 20... Nd6
{[%clk 0:01:33.8]} 21. c5 {[%clk 0:02:21.8]} 21... Nb5 {[%clk 0:01:09.6]} 22.
Qxb7 {[%clk 0:02:15.3]} 22... Nd4 {[%clk 0:01:05.2]} 23. Bd1 {[%clk 0:01:50.7]}
23... Qe5 {[%clk 0:00:59.9]} 24. Qb4 {[%clk 0:01:34.8]} 24... Rb8 {[%clk
0:00:59.4]} 25. Qc3 {[%clk 0:01:33.9]} 25... Rxb2 {[%clk 0:00:58.3]} 26. Qe3
{[%clk 0:00:46]} 26... Qxc5 {[%clk 0:00:49.2]} 27. Bf3 {[%clk 0:00:39.4]} 27...
Qd6 {[%clk 0:00:31.9]} 28. Rad1 {[%clk 0:00:29.2]} 28... c5 {[%clk 0:00:31.3]}
29. a4 {[%clk 0:00:27.8]} 29... Rfb8 {[%clk 0:00:29.5]} 30. a5 {[%clk
0:00:24.2]} 30... R2b3 {[%clk 0:00:30.2]} 31. Qe4 {[%clk 0:00:12.6]} 31... Qf6
{[%clk 0:00:27.8]} 32. a6 {[%clk 0:00:07.5]} 32... Qxa6 {[%clk 0:00:24.7]} 33.
Rxd4 {[%clk 0:00:02.9]} 33... cxd4 {[%clk 0:00:24]} 34. Qxd4+ {[%clk 0:00:04.1]}
34... Kg8 {[%clk 0:00:24.7]} 35. Bd5 {[%clk 0:00:04.6]} 35... R3b4 {[%clk
0:00:23.3]} 36. Qe5 {[%clk 0:00:02.1]} 36... Qa7 {[%clk 0:00:22.2]} 0

[Event "Torneo Nuevo Centro. Jornada 11"]
[Site "Chess.com"]
[Date "2020.08.28"]
[Round "4"]
[White "Kovacevic, Slobodan"]
[Black "Pardo Ruiz, Carlos"]
[Result "1-0"]
[WhiteElo "2253"]
[BlackElo "1704"]
[TimeControl "180+2"]
[EndTime "11:10:00 PDT"]
[Termination "Victoria de nikko110 por jaque mate"]

1. d4 {[%clk 0:03:01.9]} 1... c5 {[%clk 0:02:59.7]} 2. d5 {[%clk 0:03:01.1]}
2... Nf6 {[%clk 0:02:59.8]} 3. Nc3 {[%clk 0:03:00.2]} 3... d6 {[%clk 0:02:59.7]}
4. e4 {[%clk 0:02:58.1]} 4... e6 {[%clk 0:03:00.2]} 5. Nf3 {[%clk 0:02:54.1]}
5... exd5 {[%clk 0:03:00.4]} 6. exd5 {[%clk 0:02:53]} 6... Be7 {[%clk
0:03:01.4]} 7. Bf4 {[%clk 0:02:51.8]} 7... O-O {[%clk 0:03:01.5]} 8. Be2 {[%clk
0:02:51.8]} 8... a6 {[%clk 0:03:01.3]} 9. a4 {[%clk 0:02:50.9]} 9... Re8 {[%clk
0:03:01.3]} 10. O-O {[%clk 0:02:49.9]} 10... Bf5 {[%clk 0:02:56.2]} 11. Nd2
{[%clk 0:02:47.4]} 11... Nbd7 {[%clk 0:02:48.5]} 12. a5 {[%clk 0:02:46.4]} 12...
Bf8 {[%clk 0:02:42.7]} 13. h3 {[%clk 0:02:43.1]} 13... Ne4 {[%clk 0:02:26.6]}
14. Ncxe4 {[%clk 0:02:28.2]} 14... Bxe4 {[%clk 0:02:28.5]} 15. Nc4 {[%clk
0:02:22]} 15... Nf6 {[%clk 0:02:24.3]} 16. Bf3 {[%clk 0:02:17.7]} 16... Bxf3
{[%clk 0:02:13.4]} 17. Qxf3 {[%clk 0:02:16.9]} 17... Qc7 {[%clk 0:02:05.4]} 18.
Rfd1 {[%clk 0:02:13.1]} 18... Re4 {[%clk 0:01:50.6]} 19. b3 {[%clk 0:02:11.7]}
19... Rae8 {[%clk 0:01:47.9]} 20. g4 {[%clk 0:02:07.3]} 20... Nd7 {[%clk
0:01:34.9]} 21. Kg2 {[%clk 0:02:02.4]} 21... Re2 {[%clk 0:01:12]} 22. Ne3 {[%clk
0:02:00.7]} 22... R8xe3 {[%clk 0:01:01.9]} 23. Bxe3 {[%clk 0:01:59.2]} 23...
Rxc2 {[%clk 0:01:02.6]} 24. Qe4 {[%clk 0:01:54.8]} 24... Rc3 {[%clk 0:00:54.9]}
25. Rdc1 {[%clk 0:01:53.3]} 25... Rxb3 {[%clk 0:00:52.3]} 26. Rcb1 {[%clk
0:01:49.7]} 26... Rxb1 {[%clk 0:00:52.3]} 27. Rxb1 {[%clk 0:01:49.2]} 27... Nf6
{[%clk 0:00:53.5]} 28. Qc4 {[%clk 0:01:46.8]} 28... h6 {[%clk 0:00:44.3]} 29.
Qb3 {[%clk 0:01:44]} 29... Qxa5 {[%clk 0:00:39.3]} 30. Qxb7 {[%clk 0:01:43.2]}
30... Qa2 {[%clk 0:00:36.6]} 31. Qb3 {[%clk 0:01:39.9]} 31... Qxb3 {[%clk
0:00:36.4]} 32. Rxb3 {[%clk 0:01:39.2]} 32... Nxd5 {[%clk 0:00:37.6]} 33. Rb8
{[%clk 0:01:37.4]} 33... Nxe3+ {[%clk 0:00:37.5]} 34. fxe3 {[%clk 0:01:36.2]}
34... f6 {[%clk 0:00:38.3]} 35. Kf3 {[%clk 0:01:35.2]} 35... Kf7 {[%clk
0:00:38.6]} 36. Ke4 {[%clk 0:01:34.3]} 36... Be7 {[%clk 0:00:35.7]} 37. Kd5
{[%clk 0:01:33.5]} 37... a5 {[%clk 0:00:32.7]} 38. Ra8 {[%clk 0:01:32.2]} 38...
a4 {[%clk 0:00:32.9]} 39. Rxa4 {[%clk 0:01:30.8]} 39... g6 {[%clk 0:00:32.4]}
40. e4 {[%clk 0:01:28.9]} 40... h5 {[%clk 0:00:32]} 41. Ra7 {[%clk 0:01:27.1]}
41... hxg4 {[%clk 0:00:31.5]} 42. hxg4 {[%clk 0:01:25.2]} 42... c4 {[%clk
0:00:29.2]} 43. Rc7 {[%clk 0:01:23.5]} 43... g5 {[%clk 0:00:22]} 44. Rxc4 {[%clk
0:01:20.1]} 44... Kg6 {[%clk 0:00:22]} 45. Ke6 {[%clk 0:01:18.3]} 45... Bf8
{[%clk 0:00:22]} 46. Rc8 {[%clk 0:01:16.6]} 46... Bg7 {[%clk 0:00:22.8]} 47. Rd8
{[%clk 0:01:15.7]} 47... Bh6 {[%clk 0:00:21.3]} 48. Rxd6 {[%clk 0:01:14.6]}
48... Bg7 {[%clk 0:00:21.9]} 49. Ke7 {[%clk 0:01:12.1]} 49... Bh8 {[%clk
0:00:20.6]} 50. e5 {[%clk 0:01:10.3]} 50... Kh7 {[%clk 0:00:17.1]} 51. exf6
{[%clk 0:01:08.8]} 51... Kg8 {[%clk 0:00:18.6]} 52. f7+ {[%clk 0:01:07.9]} 52...
Kh7 {[%clk 0:00:19]} 53. f8=Q {[%clk 0:01:06.6]} 53... Bf6+ {[%clk 0:00:20.2]}
54. Qxf6 {[%clk 0:01:04.4]} 54... Kg8 {[%clk 0:00:21]} 55. Rd8+ {[%clk
0:01:03.6]} 55... Kh7 {[%clk 0:00:21.4]} 56. Rh8# {[%clk 0:01:01.4]} 1

[Event "Torneo Nuevo Centro. Jornada 11"]
[Site "Chess.com"]
[Date "2020.08.28"]
[Round "4"]
[White "Tormos Beltran, Maite"]
[Black "Fente Fernandez, Jose Ignacio"]
[Result "1-0"]
[WhiteElo "1474"]
[BlackElo "1557"]
[TimeControl "180+2"]
[EndTime "11:10:13 PDT"]
[Termination "Victoria de TORBEL79 por abandono"]

1. d4 {[%clk 0:02:47.9]} 1... d5 {[%clk 0:02:59.8]} 2. c4 {[%clk 0:02:48.6]}
2... c6 {[%clk 0:03:00.3]} 3. Nc3 {[%clk 0:02:48.9]} 3... Bf5 {[%clk 0:02:54.7]}
4. Nf3 {[%clk 0:02:49.3]} 4... Nf6 {[%clk 0:02:53.3]} 5. g3 {[%clk 0:02:49.9]}
5... g6 {[%clk 0:02:51.8]} 6. Bg2 {[%clk 0:02:50.7]} 6... Bg7 {[%clk 0:02:51]}
7. O-O {[%clk 0:02:51.3]} 7... O-O {[%clk 0:02:51.2]} 8. Qb3 {[%clk 0:02:45]}
8... b6 {[%clk 0:02:41.8]} 9. cxd5 {[%clk 0:02:41.9]} 9... cxd5 {[%clk
0:02:39.5]} 10. Ne5 {[%clk 0:02:25.1]} 10... Ne4 {[%clk 0:01:57]} 11. Nxd5
{[%clk 0:02:00.3]} 11... Nc5 {[%clk 0:01:14.1]} 12. dxc5 {[%clk 0:01:50]} 12...
Bxe5 {[%clk 0:01:13.8]} 13. Nxe7+ {[%clk 0:01:31.9]} 13... Qxe7 {[%clk
0:01:09.4]} 14. Bxa8 {[%clk 0:01:17.8]} 14... Nd7 {[%clk 0:01:01.8]} 15. Bg2
{[%clk 0:01:14.7]} 15... Nxc5 {[%clk 0:01:00.2]} 16. Qe3 {[%clk 0:00:55.8]}
16... Qd6 {[%clk 0:00:46.6]} 17. Qd2 {[%clk 0:00:38]} 17... Qxd2 {[%clk
0:00:40.5]} 18. Bxd2 {[%clk 0:00:38.3]} 18... Bxb2 {[%clk 0:00:41.7]} 19. Rad1
{[%clk 0:00:33.7]} 19... Bc2 {[%clk 0:00:32.2]} 20. Rde1 {[%clk 0:00:32.7]}
20... Re8 {[%clk 0:00:27.2]} 21. f4 {[%clk 0:00:29.4]} 21... Ne4 {[%clk
0:00:23.5]} 22. Bxe4 {[%clk 0:00:25.4]} 22... Rxe4 {[%clk 0:00:25.4]} 23. e3
{[%clk 0:00:23.3]} 23... Bd3 {[%clk 0:00:24.5]} 24. Rf2 {[%clk 0:00:23.7]} 24...
Ra4 {[%clk 0:00:20.3]} 25. a3 {[%clk 0:00:18]} 25... Bxa3 {[%clk 0:00:19.8]} 26.
Bc1 {[%clk 0:00:16.8]} 26... Bb4 {[%clk 0:00:19.7]} 27. Rd1 {[%clk 0:00:16.7]}
27... Bc2 {[%clk 0:00:19.5]} 28. Rd8+ {[%clk 0:00:15.3]} 28... Kg7 {[%clk
0:00:20]} 29. Rxc2 {[%clk 0:00:15.6]} 29... Ra1 {[%clk 0:00:18.9]} 30. Kf2
{[%clk 0:00:15.7]} 30... a5 {[%clk 0:00:15.8]} 31. Bb2+ {[%clk 0:00:16.6]} 31...
Kh6 {[%clk 0:00:12.6]} 32. Bxa1 {[%clk 0:00:18.5]} 32... a4 {[%clk 0:00:12.1]}
33. Bc3 {[%clk 0:00:19.1]} 33... Bc5 {[%clk 0:00:11.9]} 34. Bd4 {[%clk
0:00:19.4]} 34... a3 {[%clk 0:00:12.1]} 35. Ra2 {[%clk 0:00:19.9]} 35... Bb4
{[%clk 0:00:12.5]} 36. Ra8 {[%clk 0:00:20]} 36... b5 {[%clk 0:00:12.1]} 37. Kf3
{[%clk 0:00:20.8]} 37... Bd6 {[%clk 0:00:10.3]} 38. Ke4 {[%clk 0:00:21.6]} 38...
b4 {[%clk 0:00:10.7]} 39. Kd5 {[%clk 0:00:18.8]} 39... Be7 {[%clk 0:00:06.7]}
40. Bc5 {[%clk 0:00:18.1]} 40... b3 {[%clk 0:00:06.8]} 41. R2xa3 {[%clk
0:00:17.1]} 41... Bxc5 {[%clk 0:00:07.1]} 42. Kxc5 {[%clk 0:00:17.4]} 42... b2
{[%clk 0:00:09]} 43. Rb8 {[%clk 0:00:18]} 43... b1=Q {[%clk 0:00:08.9]} 44. Rxb1
{[%clk 0:00:18.5]} 1

[Event "Torneo Nuevo Centro. Jornada 11"]
[Site "Chess.com"]
[Date "2020.08.28"]
[Round "4"]
[White "Fernández Martin, Carlos"]
[Black "Montesinos Diaz, Luis"]
[Result "0-1"]
[WhiteElo "1770"]
[BlackElo "1897"]
[TimeControl "180+2"]
[EndTime "11:10:21 PDT"]
[Termination "Victoria de Gwiso_06 por tiempo"]

1. e4 {[%clk 0:03:01.9]} 1... c6 {[%clk 0:03:01]} 2. Nc3 {[%clk 0:03:02.1]} 2...
d5 {[%clk 0:03:02.9]} 3. Nf3 {[%clk 0:03:03.5]} 3... Bg4 {[%clk 0:03:01.8]} 4.
h3 {[%clk 0:03:02.6]} 4... Bxf3 {[%clk 0:02:59.5]} 5. Qxf3 {[%clk 0:03:02.9]}
5... e6 {[%clk 0:03:01.4]} 6. d4 {[%clk 0:02:52.3]} 6... Nf6 {[%clk 0:03:00.9]}
7. e5 {[%clk 0:02:52.3]} 7... Nfd7 {[%clk 0:03:00.1]} 8. Bd3 {[%clk 0:02:50.5]}
8... c5 {[%clk 0:03:00]} 9. Be3 {[%clk 0:02:42.9]} 9... cxd4 {[%clk 0:03:00.7]}
10. Bxd4 {[%clk 0:02:43.5]} 10... Nc6 {[%clk 0:03:02.1]} 11. Qe3 {[%clk
0:02:20.7]} 11... Nxd4 {[%clk 0:02:56.8]} 12. Qxd4 {[%clk 0:02:19.5]} 12... Bc5
{[%clk 0:02:58]} 13. Qg4 {[%clk 0:02:14.5]} 13... O-O {[%clk 0:02:52.3]} 14. Qe2
{[%clk 0:01:57.3]} 14... a6 {[%clk 0:02:47.8]} 15. O-O {[%clk 0:01:57.8]} 15...
b5 {[%clk 0:02:47.4]} 16. a3 {[%clk 0:01:57.8]} 16... Qc7 {[%clk 0:02:47.7]} 17.
Rfe1 {[%clk 0:01:55.3]} 17... Bd4 {[%clk 0:02:48.3]} 18. Nd1 {[%clk 0:01:52.3]}
18... Bxe5 {[%clk 0:02:48.6]} 19. c3 {[%clk 0:01:51.7]} 19... Bd6 {[%clk
0:02:48.9]} 20. Ne3 {[%clk 0:01:46.8]} 20... Nc5 {[%clk 0:02:46.7]} 21. Bc2
{[%clk 0:01:45.4]} 21... Rfc8 {[%clk 0:02:47.3]} 22. Qh5 {[%clk 0:01:38.1]}
22... g6 {[%clk 0:02:44.4]} 23. Qf3 {[%clk 0:01:32.8]} 23... a5 {[%clk
0:02:40.1]} 24. Ng4 {[%clk 0:01:33.3]} 24... Bf8 {[%clk 0:02:03.1]} 25. Nf6+
{[%clk 0:01:10.9]} 25... Kh8 {[%clk 0:02:00.8]} 26. Qg4 {[%clk 0:01:01]} 26...
Bg7 {[%clk 0:01:58.5]} 27. Qh4 {[%clk 0:00:57.7]} 27... h6 {[%clk 0:01:56.7]}
28. Ng4 {[%clk 0:00:54.3]} 28... h5 {[%clk 0:01:54.3]} 29. Nh2 {[%clk
0:00:34.6]} 29... Kg8 {[%clk 0:01:33.3]} 30. Nf3 {[%clk 0:00:33]} 30... Nd7
{[%clk 0:01:29.9]} 31. Rad1 {[%clk 0:00:21.2]} 31... Nf6 {[%clk 0:01:26.3]} 32.
Nd4 {[%clk 0:00:12.6]} 32... b4 {[%clk 0:01:22.6]} 33. axb4 {[%clk 0:00:12.7]}
33... axb4 {[%clk 0:01:24.5]} 34. cxb4 {[%clk 0:00:13.2]} 34... Qc4 {[%clk
0:01:19.6]} 35. Bb1 {[%clk 0:00:04.5]} 35... Qxb4 {[%clk 0:01:16.2]} 36. Qg3
{[%clk 0:00:04.5]} 36... Rc4 {[%clk 0:00:54.1]} 37. Nf3 {[%clk 0:00:05.2]} 37...
Ne4 {[%clk 0:00:48.6]} 38. Qh2 {[%clk 0:00:04.2]} 38... Qxb2 {[%clk 0:00:45.8]}
39. Bxe4 {[%clk 0:00:04.9]} 39... Rxe4 {[%clk 0:00:45.1]} 40. Rxe4 {[%clk
0:00:05]} 40... dxe4 {[%clk 0:00:47]} 41. Ng5 {[%clk 0:00:03.2]} 41... Qe2
{[%clk 0:00:36.1]} 42. Rf1 {[%clk 0:00:02.6]} 42... Bf6 {[%clk 0:00:34.1]} 43.
Qg3 {[%clk 0:00:02.4]} 43... Ra2 {[%clk 0:00:26.1]} 44. h4 {[%clk 0:00:03.2]}
44... Bd4 {[%clk 0:00:22]} 45. Qf4 {[%clk 0:00:03.8]} 45... Ra7 {[%clk
0:00:17.8]} 0

[Event "Torneo Nuevo Centro. Jornada 11"]
[Site "Chess.com"]
[Date "2020.08.28"]
[Round "4"]
[White "Perrot, Fabien "]
[Black "Soliva Ruiz, Ramon"]
[Result "0-1"]
[WhiteElo "1160"]
[BlackElo "1522"]
[TimeControl "180+2"]
[EndTime "11:10:29 PDT"]
[Termination "Victoria de rasoru por abandono"]

1. d4 {[%clk 0:03:01.9]} 1... Nf6 {[%clk 0:02:59.3]} 2. c4 {[%clk 0:03:00.6]}
2... e6 {[%clk 0:02:58.7]} 3. Nc3 {[%clk 0:03:01]} 3... b6 {[%clk 0:02:59]} 4.
Bg5 {[%clk 0:03:02.2]} 4... Be7 {[%clk 0:02:58.5]} 5. e3 {[%clk 0:03:03.4]} 5...
Bb7 {[%clk 0:02:51]} 6. Nf3 {[%clk 0:03:03.6]} 6... Ne4 {[%clk 0:02:37.2]} 7.
Nxe4 {[%clk 0:03:03]} 7... Bxe4 {[%clk 0:02:35]} 8. Bxe7 {[%clk 0:03:03.2]} 8...
Qxe7 {[%clk 0:02:35]} 9. Bd3 {[%clk 0:03:03.6]} 9... Bxd3 {[%clk 0:02:33.9]} 10.
Qxd3 {[%clk 0:03:04.1]} 10... f5 {[%clk 0:02:30.3]} 11. O-O-O {[%clk 0:02:54.2]}
11... Nc6 {[%clk 0:02:29.4]} 12. Rhe1 {[%clk 0:02:45.5]} 12... Nb4 {[%clk
0:02:19.8]} 13. Qb3 {[%clk 0:02:36.7]} 13... a5 {[%clk 0:02:14.4]} 14. a3 {[%clk
0:02:35.8]} 14... Nc6 {[%clk 0:02:04.7]} 15. e4 {[%clk 0:02:21.7]} 15... fxe4
{[%clk 0:01:49.2]} 16. Rxe4 {[%clk 0:02:20.2]} 16... O-O-O {[%clk 0:01:21.2]}
17. Qb5 {[%clk 0:01:51]} 17... Kb7 {[%clk 0:01:11.6]} 18. Rde1 {[%clk
0:01:37.9]} 18... Na7 {[%clk 0:01:09.4]} 19. Qg5 {[%clk 0:01:29.9]} 19... Qxg5+
{[%clk 0:00:52.7]} 20. Nxg5 {[%clk 0:01:31.8]} 20... Rdf8 {[%clk 0:00:53.3]} 21.
Nf3 {[%clk 0:01:19.3]} 21... Nc6 {[%clk 0:00:51.9]} 22. Rf1 {[%clk 0:01:14.3]}
22... Ne7 {[%clk 0:00:46.5]} 23. Ne5 {[%clk 0:01:12.1]} 23... Kc8 {[%clk
0:00:41.5]} 24. Nd3 {[%clk 0:01:08.4]} 24... Rf7 {[%clk 0:00:30.7]} 25. Kd2
{[%clk 0:01:06.8]} 25... Rhf8 {[%clk 0:00:30.6]} 26. b3 {[%clk 0:01:03.2]} 26...
Nf5 {[%clk 0:00:25.1]} 27. Kc3 {[%clk 0:00:57.8]} 27... Nd6 {[%clk 0:00:25.1]}
28. Re2 {[%clk 0:00:53.8]} 28... Nf5 {[%clk 0:00:21.6]} 29. Kd2 {[%clk
0:00:50.4]} 29... Nxd4 {[%clk 0:00:22]} 30. Re3 {[%clk 0:00:48.9]} 30... Nxb3+
{[%clk 0:00:22.7]} 31. Kc3 {[%clk 0:00:50.8]} 31... Nc5 {[%clk 0:00:21.3]} 32.
Nxc5 {[%clk 0:00:50.8]} 32... bxc5 {[%clk 0:00:22.5]} 33. f3 {[%clk 0:00:52.1]}
33... c6 {[%clk 0:00:22.3]} 34. Rb1 {[%clk 0:00:53.6]} 34... Kc7 {[%clk
0:00:23.3]} 35. Rb2 {[%clk 0:00:53.8]} 35... Rb8 {[%clk 0:00:24]} 36. Rxb8
{[%clk 0:00:50.5]} 36... Kxb8 {[%clk 0:00:24.3]} 37. Re2 {[%clk 0:00:52.4]}
37... Kc7 {[%clk 0:00:25.5]} 38. Rb2 {[%clk 0:00:53.6]} 38... Rf8 {[%clk
0:00:26.9]} 39. Kd3 {[%clk 0:00:53.7]} 39... Rb8 {[%clk 0:00:27.2]} 40. Rc2
{[%clk 0:00:50.7]} 40... Rb1 {[%clk 0:00:26.9]} 41. h3 {[%clk 0:00:47]} 41...
Kd6 {[%clk 0:00:25.7]} 42. Ke4 {[%clk 0:00:45.4]} 42... Rb3 {[%clk 0:00:25.1]}
43. a4 {[%clk 0:00:44.8]} 43... Rb4 {[%clk 0:00:24.9]} 44. Kd3 {[%clk
0:00:42.4]} 44... Rxa4 {[%clk 0:00:25.5]} 45. Rc3 {[%clk 0:00:44.3]} 45... Rb4
{[%clk 0:00:26.5]} 46. Ra3 {[%clk 0:00:44.4]} 46... a4 {[%clk 0:00:26.6]} 47.
Kc2 {[%clk 0:00:42.6]} 47... Ke5 {[%clk 0:00:27.9]} 48. Kd3 {[%clk 0:00:38]}
48... Kf4 {[%clk 0:00:28.4]} 49. Ke2 {[%clk 0:00:38.2]} 49... Rxc4 {[%clk
0:00:27.2]} 50. Kf1 {[%clk 0:00:37.4]} 50... Rb4 {[%clk 0:00:28]} 51. Kf2 {[%clk
0:00:37.7]} 51... c4 {[%clk 0:00:27.2]} 52. Re3 {[%clk 0:00:35.4]} 52... Rb2+
{[%clk 0:00:18.1]} 53. Ke1 {[%clk 0:00:33.5]} 53... Kxe3 {[%clk 0:00:18.1]} 0

[Event "Torneo Nuevo Centro. Jornada 11"]
[Site "Chess.com"]
[Date "2020.08.28"]
[Round "4"]
[White "Donate Moreno, Silvia"]
[Black "Beneyto de Ramon, Guillermo"]
[Result "1-0"]
[WhiteElo "1848"]
[BlackElo "1648"]
[TimeControl "180+2"]
[EndTime "11:10:32 PDT"]
[Termination "Victoria de monetesSAL por abandono"]

1. e4 {[%clk 0:03:01.9]} 1... Nf6 {[%clk 0:03:00]} 2. Nc3 {[%clk 0:03:01.1]}
2... e5 {[%clk 0:03:01]} 3. Nf3 {[%clk 0:02:59]} 3... Nc6 {[%clk 0:03:00.9]} 4.
Bb5 {[%clk 0:02:57.2]} 4... Nd4 {[%clk 0:03:01.7]} 5. Nxd4 {[%clk 0:02:46.6]}
5... exd4 {[%clk 0:03:03.5]} 6. Ne2 {[%clk 0:02:47.2]} 6... c6 {[%clk
0:03:02.8]} 7. Bc4 {[%clk 0:02:46.9]} 7... d5 {[%clk 0:03:02.8]} 8. exd5 {[%clk
0:02:46.7]} 8... cxd5 {[%clk 0:03:03.9]} 9. Bb5+ {[%clk 0:02:46.9]} 9... Bd7
{[%clk 0:03:02.2]} 10. Bxd7+ {[%clk 0:02:46.6]} 10... Qxd7 {[%clk 0:03:03.1]}
11. Nxd4 {[%clk 0:02:46.7]} 11... Bc5 {[%clk 0:02:59.5]} 12. Nb3 {[%clk
0:02:35.7]} 12... Qe6+ {[%clk 0:02:50.4]} 13. Qe2 {[%clk 0:02:33.7]} 13... Qxe2+
{[%clk 0:02:50]} 14. Kxe2 {[%clk 0:02:35.6]} 14... Bb6 {[%clk 0:02:50.7]} 15. d4
{[%clk 0:02:35.3]} 15... O-O {[%clk 0:02:49.9]} 16. Be3 {[%clk 0:02:33.6]} 16...
Rac8 {[%clk 0:02:47.4]} 17. c3 {[%clk 0:02:33.8]} 17... Rfe8 {[%clk 0:02:46.7]}
18. Rae1 {[%clk 0:02:26.8]} 18... Bc7 {[%clk 0:02:44.5]} 19. h3 {[%clk
0:02:16.2]} 19... Bf4 {[%clk 0:02:44.3]} 20. Kd2 {[%clk 0:02:16.8]} 20... Ne4+
{[%clk 0:02:41.7]} 21. Kc2 {[%clk 0:02:08.6]} 21... Bxe3 {[%clk 0:02:18.6]} 22.
fxe3 {[%clk 0:02:10.5]} 22... Ng3 {[%clk 0:02:17.4]} 23. Rhg1 {[%clk 0:02:11]}
23... Nf5 {[%clk 0:02:17.9]} 24. Kd3 {[%clk 0:02:08.1]} 24... Re7 {[%clk
0:02:13.6]} 25. g4 {[%clk 0:02:07]} 25... Nd6 {[%clk 0:02:13.5]} 26. Nd2 {[%clk
0:02:06.4]} 26... Rce8 {[%clk 0:02:13.6]} 27. Rgf1 {[%clk 0:02:03.4]} 27... b5
{[%clk 0:02:05.3]} 28. Rf5 {[%clk 0:02:02.7]} 28... Nxf5 {[%clk 0:02:05.6]} 29.
gxf5 {[%clk 0:02:02.1]} 29... f6 {[%clk 0:02:06]} 30. e4 {[%clk 0:01:37.1]}
30... dxe4+ {[%clk 0:02:02.3]} 31. Rxe4 {[%clk 0:01:37.5]} 31... g6 {[%clk
0:02:00.3]} 32. d5 {[%clk 0:01:30.9]} 32... gxf5 {[%clk 0:01:54.7]} 33. Rxe7
{[%clk 0:01:15.4]} 33... Rxe7 {[%clk 0:01:53.2]} 34. c4 {[%clk 0:01:16]} 34...
a6 {[%clk 0:01:51.5]} 35. c5 {[%clk 0:01:15]} 35... Rd7 {[%clk 0:01:48.4]} 36.
d6 {[%clk 0:01:15.5]} 36... Kf7 {[%clk 0:01:48.8]} 37. Ke3 {[%clk 0:01:15.4]}
37... Ke6 {[%clk 0:01:49.8]} 38. Kf4 {[%clk 0:01:16.3]} 38... h6 {[%clk
0:01:41]} 39. b4 {[%clk 0:01:15.6]} 39... Rg7 {[%clk 0:01:30.1]} 40. Nf3 {[%clk
0:01:13.4]} 40... h5 {[%clk 0:01:12.2]} 41. Nd4+ {[%clk 0:01:13.8]} 41... Kd7
{[%clk 0:00:57.5]} 42. Nxf5 {[%clk 0:01:09.3]} 42... Rg2 {[%clk 0:00:44.3]} 43.
Ke4 {[%clk 0:01:08.6]} 43... Rxa2 {[%clk 0:00:34.1]} 44. Kd5 {[%clk 0:01:08.4]}
44... Rd2+ {[%clk 0:00:33.9]} 45. Nd4 {[%clk 0:01:08.6]} 45... f5 {[%clk
0:00:23.8]} 46. c6+ {[%clk 0:01:07.9]} 46... Kd8 {[%clk 0:00:23]} 47. Ke5 {[%clk
0:01:04.2]} 47... f4 {[%clk 0:00:21.2]} 48. Ne6+ {[%clk 0:01:04]} 48... Kc8
{[%clk 0:00:17.5]} 49. d7+ {[%clk 0:01:03.3]} 49... Kb8 {[%clk 0:00:13.1]} 50.
c7+ {[%clk 0:01:03.7]} 50... Ka7 {[%clk 0:00:13.1]} 51. d8=Q {[%clk 0:01:00.8]}
51... Rxd8 {[%clk 0:00:11.2]} 52. cxd8=Q {[%clk 0:01:02.7]} 52... f3 {[%clk
0:00:13]} 53. Qc7+ {[%clk 0:01:00.3]} 53... Ka8 {[%clk 0:00:13.1]} 54. Nc5
{[%clk 0:00:58.9]} 1